fUSD/lending_fUSD_20250530
["ID","MTS","AMOUNT","RATE_DAILY","PERIOD"]
[363060868,1748563843286,-738.67,0.00021917,2]
[363060871,1748563843296,-420.0,0.00021917,2]
[363060874,1748563843305,-420.0,0.00021917,2]
[363060877,1748563843315,-420.0,0.00021917,2]
[363060879,1748563843325,-420.0,0.00021917,2]
[363060881,1748563843334,-420.0,0.00021917,2]
[363060883,1748563843344,-607.55,0.00021917,2]
[363060885,1748563843353,-488.51,0.00021917,2]
[363060887,1748563843362,-420.0,0.00021917,2]
[363060889,1748563843371,-1507.65,0.00021917,2]
[363060891,1748563843381,-420.0,0.00021917,2]
[363060893,1748563843390,-420.0,0.00021917,2]
[363060895,1748563843400,-420.0,0.00021917,2]
[363060897,1748563843410,-420.0,0.00021917,2]
[363060899,1748563843419,-420.0,0.00021917,2]
[363060901,1748563843428,-420.0,0.00021917,2]
[363060903,1748563843438,-583.32,0.00021917,2]
[363060905,1748563843447,-474.21,0.00021917,2]
[363060907,1748563843457,-831.89,0.00021917,2]
[363060909,1748563843467,-420.0,0.00021917,2]
[363060911,1748563843477,-420.0,0.00021917,2]
[363060913,1748563843486,-420.0,0.00021917,2]
[363060915,1748563843495,-796.77,0.00021917,2]
[363060917,1748563843505,-420.0,0.00021917,2]
[363060919,1748563843514,-420.0,0.00021917,2]
[363060921,1748563843524,-420.0,0.00021917,2]
[363060923,1748563843533,-431.79,0.00021917,2]
[363060925,1748563843543,-420.0,0.00021917,2]
[363060927,1748563843552,-742.49,0.00021917,2]
[363060929,1748563843562,-2492.84,0.00021917,2]
[363060931,1748563843572,-420.0,0.00021917,2]
[363060933,1748563843581,-527.05,0.00021917,2]
[363060935,1748563843591,-420.0,0.00021917,2]
[363060937,1748563843600,-506.54,0.00021917,2]
[363060939,1748563843609,-565.61,0.00021917,2]
[363060941,1748563843619,-420.0,0.00021917,2]
[363060943,1748563843628,-420.0,0.00021917,2]
[363060945,1748563843638,-420.0,0.00021917,2]
[363060947,1748563843647,-420.0,0.00021917,2]
[363060949,1748563843656,-420.0,0.00021917,2]
[363060951,1748563843666,-420.0,0.00021917,2]
[363060953,1748563843676,-589.31,0.00021917,2]
[363060955,1748563843685,-527.37,0.00021917,2]
[363060957,1748563843694,-420.0,0.00021917,2]
[363060959,1748563843704,-661.57,0.00021917,2]
[363060961,1748563843713,-420.0,0.00021917,2]
[363060963,1748563843722,-420.0,0.00021917,2]
[363060965,1748563843732,-420.0,0.00021917,2]
[363060967,1748563843741,-420.0,0.00021917,2]
[363060969,1748563843752,-427.87,0.00021917,2]
[363060971,1748563843761,-1220.68,0.00021917,2]
[363060973,1748563843770,-420.0,0.00021917,2]
[363060975,1748563843779,-420.0,0.00021917,2]
[363060977,1748563843794,-540.22,0.00021917,2]
[363060979,1748563843803,-664.56,0.00021917,2]
[363060980,1748563843813,-420.0,0.00021917,2]
[363060982,1748563843822,-188.29463312,0.00021917,2]
[363060984,1748563843832,-420.0,0.00021917,2]
[363060986,1748563843841,-420.0,0.00021917,2]
[363060988,1748563843851,-420.0,0.00021917,2]
[363060990,1748563843861,-420.0,0.00021917,2]
[363060992,1748563843870,-420.0,0.00021917,2]
[363060994,1748563843880,-1198.51,0.00021917,2]
[363060996,1748563843890,-2596.09,0.00021917,2]
[363060998,1748563843899,-420.0,0.00021917,2]
[363061001,1748563843910,-420.0,0.00021917,2]
[363061003,1748563843919,-420.0,0.00021917,2]
[363061005,1748563843929,-420.0,0.00021917,2]
[363061007,1748563843938,-420.0,0.00021917,2]
[363061009,1748563843947,-420.0,0.00021917,2]
[363061011,1748563843956,-420.0,0.00021917,2]
[363061013,1748563843966,-493.81,0.00021917,2]
[363061015,1748563843975,-268.8836759,0.00021917,2]
[363061017,1748563843985,-420.0,0.00021917,2]
[363061019,1748563843994,-556.76,0.00021917,2]
[363061021,1748563844004,-1086.42,0.00021917,2]
[363061023,1748563844013,-420.0,0.00021917,2]
[363061024,1748563844022,-420.0,0.00021917,2]
[363061026,1748563844032,-420.0,0.00021917,2]
[363061028,1748563844041,-420.0,0.00021917,2]
[363061030,1748563844051,-420.0,0.00021917,2]
[363061032,1748563844060,-420.0,0.00021917,2]
[363061033,1748563844071,-1037.89,0.00021917,2]
[363061035,1748563844080,-420.0,0.00021917,2]
[363061037,1748563844090,-420.0,0.00021917,2]
[363061039,1748563844099,-423.84542719,0.00021917,2]
[363061041,1748563844108,-1341.32,0.00021917,2]
[363061043,1748563844117,-1341.95,0.00021917,2]
[363061045,1748563844126,-420.0,0.00021917,2]
[363061047,1748563844135,-420.0,0.00021917,2]
[363061049,1748563844145,-420.0,0.00021917,2]
[363061051,1748563844154,-2906.94,0.00021917,2]
[363061075,1748563844366,-420.0,0.00021917,2]
[363061077,1748563844376,-420.0,0.00021917,2]
[363061079,1748563844386,-1443.13,0.00021917,2]
[363061081,1748563844395,-420.0,0.00021917,2]
[363061082,1748563844405,-420.0,0.00021917,2]
[363061084,1748563844416,-420.0,0.00021917,2]
[363061086,1748563844426,-420.0,0.00021917,2]
[363061088,1748563844435,-582.32,0.00021917,2]
[363061090,1748563844445,-420.0,0.00021917,2]
[363061093,1748563844455,-420.0,0.00021917,2]
[363061094,1748563844465,-699.93,0.00021917,2]
[363061096,1748563844474,-500.0,0.00021917,2]
[363061098,1748563844484,-420.0,0.00021917,2]
[363061100,1748563844493,-420.0,0.00021917,2]
[363061101,1748563844502,-420.0,0.00021917,2]
[363061102,1748563844511,-420.0,0.00021917,2]
[363061103,1748563844520,-420.0,0.00021917,2]
[363061104,1748563844529,-821.22,0.00021917,2]
[363061105,1748563844538,-420.0,0.00021917,2]
[363061106,1748563844548,-420.0,0.00021917,2]
[363061107,1748563844557,-534.87418599,0.00021917,2]
[363061108,1748563844568,-421.33641958,0.00021917,2]
[363061109,1748563844579,-420.0,0.00021917,2]
[363061110,1748563844588,-420.0,0.00021917,2]
[363061111,1748563844598,-420.0,0.00021917,2]
[363061112,1748563844607,-420.0,0.00021917,2]
[363061113,1748563844616,-420.0,0.00021917,2]
[363061114,1748563844626,-1777.15,0.00021917,2]
[363061116,1748563844635,-420.0,0.00021917,2]
[363061118,1748563844644,-1461.54,0.00021917,2]
[363061120,1748563844653,-420.0,0.00021917,2]
[363061122,1748563844662,-420.0,0.00021917,2]
[363061124,1748563844672,-420.0,0.00021917,2]
[363061126,1748563844681,-1325.67,0.00021917,2]
[363061128,1748563844690,-811.89,0.00021917,2]
[363061130,1748563844699,-420.0,0.00021917,2]
[363061132,1748563844709,-422.88959506,0.00021917,2]
[363061134,1748563844718,-420.0,0.00021917,2]
[363061136,1748563844727,-420.0,0.00021917,2]
[363061138,1748563844737,-420.0,0.00021917,2]
[363061140,1748563844746,-1657.45,0.00021917,2]
[363061142,1748563844755,-420.0,0.00021917,2]
[363061144,1748563844765,-724.1,0.00021917,2]
[363061146,1748563844774,-1009.68,0.00021917,2]
[363061148,1748563844784,-156.582472,0.00021917,2]
[363061150,1748563844797,-420.0,0.00021917,2]
[363061152,1748563844806,-420.0,0.00021917,2]
[363061154,1748563844816,-420.0,0.00021917,2]
[363061156,1748563844825,-151.0,0.00021917,2]
[363061158,1748563844834,-542.34,0.00021917,2]
[363061160,1748563844843,-420.0,0.00021917,2]
[363061162,1748563844853,-425.62,0.00021917,2]
[363061165,1748563844863,-497.68111984,0.00021917,2]
[363061167,1748563844874,-420.0,0.00021917,2]
[363061168,1748563844884,-420.0,0.00021917,2]
[363061170,1748563844894,-476.43,0.00021917,2]
[363061172,1748563844904,-1157.6,0.00021917,2]
[363061174,1748563844914,-420.0,0.00021917,2]
[363061177,1748563844925,-538.82,0.00021917,2]
[363061179,1748563844935,-420.0,0.00021917,2]
[363061181,1748563844945,-420.0,0.00021917,2]
[363061183,1748563844955,-420.0,0.00021917,2]
[363061185,1748563844964,-420.0,0.00021917,2]
[363061187,1748563844974,-489.22,0.00021917,2]
[363061189,1748563844985,-1029.25,0.00021917,2]
[363061191,1748563844995,-420.0,0.00021917,2]
[363061193,1748563845004,-984.89,0.00021917,2]
[363061195,1748563845013,-420.0,0.00021917,2]
[363061197,1748563845022,-420.0,0.00021917,2]
[363061199,1748563845032,-420.0,0.00021917,2]
[363061201,1748563845041,-959.15,0.00021917,2]
[363061203,1748563845050,-420.0,0.00021917,2]
[363061205,1748563845060,-286.27515209,0.00021917,2]
[363061207,1748563845071,-420.0,0.00021917,2]
[363061209,1748563845081,-2171.13,0.00021917,2]
[363061211,1748563845090,-420.0,0.00021917,2]
[363061213,1748563845099,-541.09,0.00021917,2]
[363061215,1748563845110,-420.0,0.00021917,2]
[363061217,1748563845120,-541.73,0.00021917,2]
[363061219,1748563845130,-540.12,0.00021917,2]
[363061221,1748563845140,-420.0,0.00021917,2]
[363061224,1748563845150,-420.0,0.00021917,2]
[363061226,1748563845160,-420.0,0.00021917,2]
[363061228,1748563845171,-420.0,0.00021917,2]
[363061230,1748563845181,-420.0,0.00021917,2]
[363061232,1748563845192,-420.0,0.00021917,2]
[363061234,1748563845202,-1483.12,0.00021917,2]
[363061236,1748563845212,-420.0,0.00021917,2]
[363061238,1748563845221,-493.96,0.00021917,2]
[363061240,1748563845232,-420.0,0.00021917,2]
[363061242,1748563845242,-1522.14,0.00021917,2]
[363061244,1748563845251,-420.0,0.00021917,2]
[363061246,1748563845261,-420.0,0.00021917,2]
[363061248,1748563845270,-420.0,0.00021917,2]
[363061250,1748563845280,-470.2,0.00021917,2]
[363061252,1748563845290,-420.0,0.00021917,2]
[363061254,1748563845300,-1543.13,0.00021917,2]
[363061256,1748563845309,-775.33,0.00021917,2]
[363061258,1748563845322,-465.24138076,0.00021917,2]
[363061260,1748563845331,-420.0,0.00021917,2]
[363061262,1748563845341,-443.72,0.00021917,2]
[363061264,1748563845350,-420.0,0.00021917,2]
[363061266,1748563845360,-473.52,0.00021917,2]
[363061268,1748563845370,-420.0,0.00021917,2]
[363061270,1748563845379,-420.0,0.00021917,2]
[363061272,1748563845389,-531.69,0.00021917,2]
[363061275,1748563845399,-420.0,0.00021917,2]
[363061278,1748563845408,-625.47,0.00021917,2]
[363061281,1748563845418,-420.0,0.00021917,2]
[363061284,1748563845428,-493.34,0.00021917,2]
[363061287,1748563845438,-1057.8,0.00021917,2]
[363061289,1748563845447,-420.0,0.00021917,2]
[363061292,1748563845456,-420.0,0.00021917,2]
[363061295,1748563845466,-1879.99,0.00021917,2]
[363061298,1748563845476,-420.0,0.00021917,2]
[363061300,1748563845486,-420.0,0.00021917,2]
[363061305,1748563845495,-1000.0,0.00021917,2]
[363061309,1748563845505,-420.0,0.00021917,2]
[363061312,1748563845514,-934.57,0.00021917,2]
[363061315,1748563845524,-420.0,0.00021917,2]
[363061320,1748563845534,-420.0,0.00021917,2]
[363061324,1748563845543,-420.0,0.00021917,2]
[363061327,1748563845552,-1354.69,0.00021917,2]
[363061330,1748563845562,-420.0,0.00021917,2]
[363061333,1748563845572,-420.0,0.00021917,2]
[363061336,1748563845583,-420.0,0.00021917,2]
[363061339,1748563845592,-420.0,0.00021917,2]
[363061342,1748563845601,-423.94,0.00021917,2]
[363061345,1748563845611,-420.0,0.00021917,2]
[363061348,1748563845622,-1805.0,0.00021917,2]
[363061351,1748563845631,-420.0,0.00021917,2]
[363061354,1748563845641,-11024.42,0.00021917,2]
[363061357,1748563845652,-1306.76,0.00021917,2]
[363061359,1748563845662,-364.80867097,0.00021917,2]
[363061361,1748563845671,-492.31610635,0.00021917,2]
[363061364,1748563845681,-420.0,0.00021917,2]
[363061366,1748563845691,-420.0,0.00021917,2]
[363061368,1748563845700,-420.0,0.00021917,2]
[363061370,1748563845709,-420.0,0.00021917,2]
[363061372,1748563845719,-420.0,0.00021917,2]
[363061374,1748563845728,-153.06348836,0.00021917,2]
[363061375,1748563845738,-2156.35,0.00021917,2]
[363061377,1748563845747,-508.58,0.00021917,2]
[363061380,1748563845756,-508.58,0.00021917,2]
[363061382,1748563845766,-2933.61,0.00021917,2]
[363061384,1748563845775,-420.0,0.00021917,2]
[363061386,1748563845786,-420.0,0.00021917,2]
[363061388,1748563845798,-701.18,0.00021917,2]
[363061390,1748563845807,-612.89,0.00021917,2]
[363061392,1748563845817,-482.59,0.00021917,2]
[363061394,1748563845826,-700.05,0.00021917,2]
[363061396,1748563845836,-1701.63,0.00021917,2]
[363061398,1748563845845,-420.0,0.00021917,2]
[363061400,1748563845854,-3084.15,0.00021917,2]
[363061402,1748563845865,-420.0,0.00021917,2]
[363061404,1748563845874,-1198.08,0.00021917,2]
[363061406,1748563845883,-420.0,0.00021917,2]
[363061408,1748563845893,-1463.42,0.00021917,2]
[363061410,1748563845902,-783.33,0.00021917,2]
[363061412,1748563845911,-420.0,0.00021917,2]
[363061414,1748563845920,-2250.62,0.00021917,2]
[363061416,1748563845929,-420.0,0.00021917,2]
[363061418,1748563845938,-403.51922932,0.00021917,2]
[363061420,1748563845947,-1180.33,0.00021917,2]
[363061422,1748563845957,-545.86,0.00021917,2]
[363061424,1748563845967,-420.0,0.00021917,2]
[363061426,1748563845976,-2305.43,0.00021917,2]
[363061428,1748563845985,-420.0,0.00021917,2]
[363061430,1748563845994,-1778.42,0.00021917,2]
[363061432,1748563846003,-420.0,0.00021917,2]
[363061434,1748563846013,-420.0,0.00021917,2]
[363061436,1748563846022,-420.0,0.00021917,2]
[363061438,1748563846032,-420.0,0.00021917,2]
[363061440,1748563846041,-420.0,0.00021917,2]
[363061442,1748563846051,-420.0,0.00021917,2]
[363061444,1748563846060,-420.0,0.00021917,2]
[363061446,1748563846071,-420.0,0.00021917,2]
[363061448,1748563846080,-1021.51,0.00021917,2]
[363061450,1748563846089,-7064.55,0.00021917,2]
[363061452,1748563846099,-420.0,0.00021917,2]
[363061454,1748563846108,-449.45,0.00021917,2]
[363061456,1748563846117,-420.0,0.00021917,2]
[363061458,1748563846127,-420.0,0.00021917,2]
[363061460,1748563846136,-1666.03,0.00021917,2]
[363061463,1748563846146,-420.0,0.00021917,2]
[363061465,1748563846155,-420.0,0.00021917,2]
[363061467,1748563846165,-974.08,0.00021917,2]
[363061468,1748563846176,-420.0,0.00021917,2]
[363061471,1748563846188,-1360.36,0.00021917,2]
[363061473,1748563846197,-495.36,0.00021917,2]
[363061475,1748563846206,-420.0,0.00021917,2]
[363061477,1748563846215,-216.06924505,0.00021917,2]
[363061479,1748563846225,-733.19,0.00021917,2]
[363061481,1748563846235,-420.0,0.00021917,2]
[363061483,1748563846244,-922.36,0.00021917,2]
[363061485,1748563846254,-600.68,0.00021917,2]
[363061487,1748563846263,-420.0,0.00021917,2]
[363061490,1748563846273,-420.0,0.00021917,2]
[363061492,1748563846282,-3506.68,0.00021917,2]
[363061494,1748563846291,-420.0,0.00021917,2]
[363061496,1748563846301,-420.0,0.00021917,2]
[363061498,1748563846310,-420.0,0.00021917,2]
[363061500,1748563846321,-420.0,0.00021917,2]
[363061502,1748563846330,-420.0,0.00021917,2]
[363061504,1748563846340,-420.0,0.00021917,2]
[363061506,1748563846349,-420.0,0.00021917,2]
[363061508,1748563846359,-955.23,0.00021917,2]
[363061510,1748563846368,-2151.23,0.00021917,2]
[363061512,1748563846378,-420.0,0.00021917,2]
[363061514,1748563846387,-420.0,0.00021917,2]
[363061516,1748563846398,-420.0,0.00021917,2]
[363061518,1748563846408,-578.08,0.00021917,2]
[363061520,1748563846418,-745.6,0.00021917,2]
[363061522,1748563846428,-420.0,0.00021917,2]
[363061524,1748563846437,-826.7,0.00021917,2]
[363061526,1748563846447,-254.62607033,0.00021917,2]
[363061528,1748563846456,-420.0,0.00021917,2]
[363061530,1748563846466,-420.0,0.00021917,2]
[363061532,1748563846475,-420.0,0.00021917,2]
[363061534,1748563846484,-420.0,0.00021917,2]
[363061536,1748563846494,-420.0,0.00021917,2]
[363061538,1748563846503,-857.84,0.00021917,2]
[363061540,1748563846512,-406.51984163,0.00021917,2]
[363061542,1748563846522,-420.0,0.00021917,2]
[363061544,1748563846532,-420.0,0.00021917,2]
[363061546,1748563846541,-744.46,0.00021917,2]
[363061548,1748563846551,-420.0,0.00021917,2]
[363061550,1748563846560,-420.0,0.00021917,2]
[363061553,1748563846572,-420.0,0.00021917,2]
[363061554,1748563846582,-14119.45,0.00021917,2]
[363061557,1748563846592,-1620.66,0.00021917,2]
[363061559,1748563846601,-420.0,0.00021917,2]
[363061560,1748563846610,-8796.18,0.00021917,2]
[363061563,1748563846620,-420.0,0.00021917,2]
[363061565,1748563846630,-1506.64,0.00021917,2]
[363061567,1748563846639,-420.0,0.00021917,2]
[363061569,1748563846649,-1484.47,0.00021917,2]
[363061571,1748563846658,-420.0,0.00021917,2]
[363061573,1748563846668,-420.0,0.00021917,2]
[363061574,1748563846677,-1072.77,0.00021917,2]
[363061576,1748563846687,-1361.85,0.00021917,2]
[363061584,1748563846774,-3118.13,0.00021917,2]
[363061585,1748563846786,-2167.51,0.00021917,2]
[363061586,1748563846796,-634.19,0.00021917,2]
[363061587,1748563846805,-420.0,0.00021917,2]
[363061588,1748563846815,-420.0,0.00021917,2]
[363061589,1748563846825,-1027.89,0.00021917,2]
[363061590,1748563846835,-420.0,0.00021917,2]
[363061591,1748563846845,-420.0,0.00021917,2]
[363061593,1748563846854,-420.0,0.00021917,2]
[363061594,1748563846863,-1880.77,0.00021917,2]
[363061597,1748563846873,-1518.44,0.00021917,2]
[363061598,1748563846883,-420.0,0.00021917,2]
[363061600,1748563846892,-1533.43,0.00021917,2]
[363061602,1748563846902,-542.99,0.00021917,2]
[363061604,1748563846911,-420.0,0.00021917,2]
[363061606,1748563846920,-420.0,0.00021917,2]
[363061608,1748563846930,-716.85,0.00021917,2]
[363061610,1748563846939,-420.0,0.00021917,2]
[363061612,1748563846949,-1592.03,0.00021917,2]
[363061614,1748563846959,-420.0,0.00021917,2]
[363061616,1748563846968,-6042.94,0.00021917,2]
[363061618,1748563846977,-737.53,0.00021917,2]
[363061620,1748563846986,-420.0,0.00021917,2]
[363061622,1748563846996,-625.4,0.00021917,2]
[363061624,1748563847005,-2184.59,0.00021917,2]
[363061626,1748563847014,-781.11,0.00021917,2]
[363061628,1748563847023,-580.64,0.00021917,2]
[363061630,1748563847033,-1188.1,0.00021917,2]
[363061632,1748563847042,-420.0,0.00021917,2]
[363061634,1748563847051,-420.0,0.00021917,2]
[363061636,1748563847060,-447.24,0.00021917,2]
[363061638,1748563847072,-1364.38,0.00021917,2]
[363061640,1748563847082,-4964.25,0.00021917,2]
[363061642,1748563847091,-420.0,0.00021917,2]
[363061644,1748563847100,-420.0,0.00021917,2]
[363061646,1748563847110,-420.0,0.00021917,2]
[363061648,1748563847119,-1054.07,0.00021917,2]
[363061650,1748563847128,-684.69,0.00021917,2]
[363061652,1748563847138,-3242.79,0.00021917,2]
[363061654,1748563847147,-420.0,0.00021917,2]
[363061656,1748563847156,-420.0,0.00021917,2]
[363061658,1748563847166,-420.0,0.00021917,2]
[363061660,1748563847175,-476.83,0.00021917,2]
[363061662,1748563847185,-847.7,0.00021917,2]
[363061664,1748563847194,-1184.37,0.00021917,2]
[363061666,1748563847204,-420.0,0.00021917,2]
[363061668,1748563847214,-420.0,0.00021917,2]
[363061670,1748563847223,-2134.72,0.00021917,2]
[363061672,1748563847232,-1430.16,0.00021917,2]
[363061674,1748563847243,-1788.79,0.00021917,2]
[363061676,1748563847252,-420.0,0.00021917,2]
[363061678,1748563847262,-420.0,0.00021917,2]
[363061680,1748563847271,-420.0,0.00021917,2]
[363061682,1748563847280,-420.0,0.00021917,2]
[363061684,1748563847289,-420.0,0.00021917,2]
[363061686,1748563847299,-1942.52,0.00021917,2]
[363061688,1748563847308,-1147.66,0.00021917,2]
[363061690,1748563847319,-420.0,0.00021917,2]
[363061692,1748563847328,-420.0,0.00021917,2]
[363061694,1748563847338,-454.91,0.00021917,2]
[363061696,1748563847348,-3434.52,0.00021917,2]
[363061698,1748563847358,-445.66,0.00021917,2]
[363061700,1748563847367,-420.0,0.00021917,2]
[363061702,1748563847377,-913.19,0.00021917,2]
[363061704,1748563847387,-420.0,0.00021917,2]
[363061706,1748563847397,-420.0,0.00021917,2]
[363061708,1748563847407,-682.15,0.00021917,2]
[363061710,1748563847416,-465.8,0.00021917,2]
[363061712,1748563847426,-1022.79,0.00021917,2]
[363061714,1748563847436,-420.0,0.00021917,2]
[363061716,1748563847446,-639.56,0.00021917,2]
[363061718,1748563847456,-420.0,0.00021917,2]
[363061720,1748563847466,-865.16,0.00021917,2]
[363061722,1748563847476,-420.0,0.00021917,2]
[363061724,1748563847485,-420.0,0.00021917,2]
[363061726,1748563847495,-610.03,0.00021917,2]
[363061728,1748563847506,-985.45,0.00021917,2]
[363061731,1748563847516,-420.0,0.00021917,2]
[363061733,1748563847526,-420.0,0.00021917,2]
[363061734,1748563847536,-491.45,0.00021917,2]
[363061736,1748563847547,-420.0,0.00021917,2]
[363061738,1748563847557,-4578.83,0.00021917,2]
[363061740,1748563847568,-420.0,0.00021917,2]
[363061742,1748563847578,-1058.59,0.00021917,2]
[363061744,1748563847588,-420.0,0.00021917,2]
[363061746,1748563847598,-986.04,0.00021917,2]
[363061749,1748563847608,-420.0,0.00021917,2]
[363061751,1748563847617,-420.0,0.00021917,2]
[363061753,1748563847627,-1194.06,0.00021917,2]
[363061755,1748563847636,-420.0,0.00021917,2]
[363061757,1748563847646,-754.85,0.00021917,2]
[363061758,1748563847655,-420.0,0.00021917,2]
[363061760,1748563847665,-579.74,0.00021917,2]
[363061762,1748563847675,-4662.46,0.00021917,2]
[363061764,1748563847684,-420.0,0.00021917,2]
[363061766,1748563847694,-2804.13,0.00021917,2]
[363061768,1748563847703,-420.0,0.00021917,2]
[363061770,1748563847712,-761.81,0.00021917,2]
[363061772,1748563847722,-423.71453212,0.00021917,2]
[363061774,1748563847731,-420.0,0.00021917,2]
[363061776,1748563847740,-549.89,0.00021917,2]
[363061778,1748563847750,-524.99,0.00021917,2]
[363061780,1748563847759,-1780.96,0.00021917,2]
[363061782,1748563847768,-420.0,0.00021917,2]
[363061784,1748563847778,-427.28679114,0.00021917,2]
[363061786,1748563847789,-420.0,0.00021917,2]
[363061788,1748563847799,-5170.75,0.00021917,2]
[363061790,1748563847809,-1533.7,0.00021917,2]
[363061792,1748563847819,-428.07394457,0.00021917,2]
[363061795,1748563847828,-1234.43,0.00021917,2]
[363061797,1748563847839,-420.0,0.00021917,2]
[363061798,1748563847848,-961.83,0.00021917,2]
[363061801,1748563847857,-329.68288899,0.00021917,2]
[363061802,1748563847867,-1476.46,0.00021917,2]
[363061804,1748563847877,-553.47,0.00021917,2]
[363061807,1748563847887,-240.0,0.00021917,2]
[363061809,1748563847897,-1210.54,0.00021917,2]
[363061811,1748563847906,-2921.91,0.00021917,2]
[363061813,1748563847916,-514.03,0.00021917,2]
[363061815,1748563847925,-1109.83,0.00021917,2]
[363061817,1748563847935,-2533.5,0.00021917,2]
[363061819,1748563847943,-420.0,0.00021917,2]
[363061821,1748563847951,-379.96419233,0.00021917,2]
[363061822,1748563847961,-284.00012865,0.00021917,2]
[363061824,1748563847970,-420.0,0.00021917,2]
[363061826,1748563847980,-420.0,0.00021917,2]
[363061829,1748563847989,-526.12,0.00021917,2]
[363061830,1748563847999,-564.09,0.00021917,2]
[363061832,1748563848008,-3790.39,0.00021917,2]
[363061835,1748563848018,-943.4,0.00021917,2]
[363061837,1748563848028,-6284.46,0.00021917,2]
[363061839,1748563848038,-420.0,0.00021917,2]
[363061841,1748563848047,-420.0,0.00021917,2]
[363061842,1748563848058,-532.6,0.00021917,2]
[363061845,1748563848071,-701.81,0.00021917,2]
[363061847,1748563848081,-420.0,0.00021917,2]
[363061848,1748563848091,-531.19,0.00021917,2]
[363061851,1748563848101,-420.0,0.00021917,2]
[363061853,1748563848110,-420.0,0.00021917,2]
[363061854,1748563848120,-582.84,0.00021917,2]
[363061856,1748563848130,-1237.65,0.00021917,2]
[363061859,1748563848140,-1440.34,0.00021917,2]
[363061861,1748563848149,-570.82,0.00021917,2]
[363061863,1748563848159,-420.0,0.00021917,2]
[363061865,1748563848170,-420.0,0.00021917,2]
[363061867,1748563848180,-420.0,0.00021917,2]
[363061869,1748563848190,-420.0,0.00021917,2]
[363061871,1748563848200,-1129.53,0.00021917,2]
[363061873,1748563848210,-644.79,0.00021917,2]
[363061875,1748563848220,-420.0,0.00021917,2]
[363061877,1748563848229,-1750.34707661,0.00021939,2]
[363061879,1748563848238,-3279.47149474,0.00021939,2]
[363061881,1748563848247,-5492.55533715,0.00021948,2]
[363061883,1748563848257,-423.18873673,0.00022054,2]
[363061885,1748563848267,-1750.34707661,0.00022061,2]
[363061887,1748563848276,-3279.47149474,0.00022061,2]
[363061889,1748563848286,-508.58,0.0002209,2]
[363061891,1748563848296,-222.49935802,0.0002209,2]
[363061893,1748563848305,-8800.0,0.00022091,2]
[363061895,1748563848317,-13018.9285,0.00022091,2]
[363061897,1748563848326,-1000.0,0.00022091,2]
[363061899,1748563848336,-169.0706662,0.00022091,2]
[363061901,1748563848346,-500.00051981,0.00022091,2]
[363061903,1748563848355,-150.053002,0.00022098,3]
[363061905,1748563848365,-156.25191989,0.00022159,2]
[363061907,1748563848374,-1750.34707661,0.00022182,2]
[363061909,1748563848384,-3279.47149474,0.00022182,2]